Cogmind - Beta 16.1 @@@ ROGUE MODE // 2026.03.14 @ 16:58:06 Player: cptwinky Result: Destroyed by IT-CEW(R) with Subdweller Laser Performance ------------- Evolutions (0) 0 Regions Visited (3) 600 Robots Destroyed (15) 75 Value Destroyed (318) 318 Prototype IDs (1) 20 Alien Tech Used (0) 0 Bonus (113) 113 TOTAL SCORE: 1126 Bonus ------- Follower Combat Kills 125 Friendly Fire -12 Cogmind --------- Core Integrity 0/250 Matter 290/300 Energy 250/250 System Corruption 0% Temperature Cool (6) Movement Treading (160) Location -10/Subcaves Parts ------- > --- POWER (1) -------- Ion Engine > --- PROPULSION (2) --- Light Treads Light Treads > --- UTILITY (2) ------ Large Storage Unit > --- WEAPON (2) ------- Medium Laser Medium Laser > --- INVENTORY (15) --- Improved Ion Engine Light Treads Light Treads Light Treads High-capacity Matter Pod (200) Experimental Sensor Array Seismic Detector Makeshift Targeting Computer Scrap Shield Medium Laser Medium Laser Subdweller Laser Datajack Makeshift Hammer Peak State ------------ > --- POWER ------------ Light Ion Engine > --- PROPULSION ------- Light Treads Light Treads > --- UTILITY ---------- Large Storage Unit Experimental Sensor Array > --- WEAPON ----------- Medium Laser Medium Laser > --- INVENTORY -------- Ion Engine Light Treads Aluminum Leg Compact Wheel High-capacity Matter Pod Seismic Detector Medium Laser Medium Laser Medium Laser Medium Laser Medium Laser Light Assault Rifle Datajack Mining Laser [Rating: 16] Favorites ----------- Power Ion Engine Engine Ion Engine Propulsion Light Treads Treads Light Treads Utility Large Storage Unit Device Seismic Detector Storage Large Storage Unit Protection Light Armor Plating Weapon Medium Laser Energy Gun Medium Laser Ballistic Gun Light Assault Rifle Special Weapon Mining Laser Impact Weapon Makeshift Hammer Slashing Weapon Makeshift Axe Build | -11 -10 -10 -10 ------- Run | Yrd Mat Min Sub Slots Evolved . | . . . . Power . | . . . . Propulsion . | . . . . Utility . | . . . . Weapon . | . . . . Parts Attached 22 | 6 3 3 10 Power 3 | 1 1 1 . Engine 3 | 1 1 1 . Core . | . . . . Reactor . | . . . . Propulsion 2 | 2 . . . Treads 2 | 2 . . . Leg . | . . . . Wheel . | . . . . Hover . | . . . . Flight . | . . . . Utility 7 | 1 1 2 3 Device 2 | . . 1 1 Storage 2 | 1 1 . . Processor . | . . . . Hackware . | . . . . Protection 3 | . . 1 2 Artifact . | . . . . Weapon 10 | 2 1 . 7 Energy Gun 5 | 1 1 . 3 Energy Cannon . | . . . . Ballistic Gun 2 | 1 . . 1 Ballistic Cannon . | . . . . Launcher . | . . . . Special Weapon 1 | . . . 1 Impact Weapon 1 | . . . 1 Slashing Weapon 1 | . . . 1 Piercing Weapon . | . . . . Special Melee Weapon . | . . . . Unidentified Prototypes 1 | . . 1 . Parts Lost 5 | . . . 5 Power . | . . . . Propulsion . | . . . . Utility 3 | . . . 3 Weapon 2 | . . . 2 Highest Loss Streak 4 | . . . 4 To Critical Strikes . | . . . . Average Backups 12 | 4 10 14 14 Power . | . 1 . 1 Propulsion 2 | 1 3 3 3 Utility 3 | . 1 2 4 Weapon 4 | 1 3 6 4 Tool/Special . | . . . . Unused Backups 16 | . 2 3 11 Power 1 | . . . 1 Propulsion 6 | . 1 2 3 Utility 3 | . . . 3 Weapon 5 | . 1 1 3 Tool/Special 1 | . . . 1 Average Slot Usage (%) 93 | . 85 87 99 Engine 14 | . 14 14 14 Treads 28 | . 28 28 28 Device 4 | . . . 7 Storage 14 | . 14 14 14 Protection 3 | . . 2 6 Energy Gun 21 | . 19 28 19 Ballistic Gun 4 | . 8 . 4 Impact Weapon 1 | . . . 2 Peak Build Rating 16 | 6 7 16 12 Average Rating 8 | 5 6 7 10 On Entrance 5 | . 6 7 9 Avg Prop Armor Cover (%) . | . . . . Naked Turns . | . . . . Heaviest Build 34 | 11 27 32 34 Greatest Support 40 | 40 40 40 40 Greatest Overweight (x) . | . . . . Average Overweight (x) . | . . . . Largest Inventory Capacity 15 | 8 15 15 15 Average Capacity 13 | 7 10 15 15 Most Carried 15 | 7 14 15 15 Average Carried 12 | 4 10 14 14 Final Capacity 15 | 8 15 15 15 Final Carried 15 | 7 14 15 15 Class Distribution -------------------- 100% | Mutant Dominant Class ---------------- Mutant | -10/Materials Mutant | -10/Mines Mutant | -10/Subcaves Resources | -11 -10 -10 -10 ----------- Run | Yrd Mat Min Sub Matter Collected 667 | 262 121 144 140 Remotely . | . . . . Salvage Created 403 | 78 138 . 187 Parts 32 | 10 15 . 7 Haulers Intercepted . | . . . . Recyclers Shooed . | . . . . Parts Field Recycled . | . . . . Retrieved Matter . | . . . . Parts Self-Destructed 10 | . . . 10 Prevented . | . . . . Parts Restored . | . . . . Kills | -11 -10 -10 -10 ------- Run | Yrd Mat Min Sub Combat Hostiles Destroyed 10 | . 5 . 5 Guns 10 | . 5 . 5 Classes Destroyed 5 | 1 3 . 1 Tunneler 4 | 3 1 . . Operator 1 | . 1 . . Swarmer 4 | . 4 . . Grunt 1 | . 1 . . Subdweller 5 | . . . 5 Best Kill Streak 4 | 1 4 . 4 Combat Bots Only 4 | . 4 . 4 Max Kills in Single Turn 2 | 1 2 . 1 Gunslinging . | . . . . Exploded . | . . . . Melee . | . . . . Uniques/NPCs Destroyed . | . . . . Combat | -11 -10 -10 -10 -------- Run | Yrd Mat Min Sub Hostile Shots Fired 89 | . 38 . 51 Missed 21 | . 8 . 13 Hits 68 | . 30 . 38 Projectile 68 | . 30 . 38 AOE 5 | . . . 5 Damage Taken 1198 | . 247 . 951 Core 253 | . 62 . 191 Absorbed by Shields . | . . . . Core Remaining (%) 100 | 100 . . . Volleys Fired 60 | 4 17 . 39 Largest 2 | 2 2 . 2 Hottest 100 | 70 100 . 100 Shots Fired 118 | 8 34 . 76 Gun 116 | 8 34 . 74 Cannon . | . . . . Launcher . | . . . . Special 2 | . . . 2 Kinetic 23 | 4 14 . 5 Thermal 95 | 4 20 . 71 Explosive . | . . . . Electromagnetic . | . . . . Robot Hit Streak 21 | 4 7 . 21 Robot Miss Streak 3 | 1 3 . 3 Penetration Max . | . . . . Secondary Targets 4 | . 2 . 2 Max Gunslinging Chain 1 | . 1 . 1 Shots Hit Robots 88 | 6 21 . 61 Core Hits 27 | 3 10 . 14 Critical Kills . | . . . . Critical Parts Destroyed . | . . . . Critical Strikes 5 | . 1 . 4 Burn 5 | . 1 . 4 Melee Attacks 7 | . . . 7 Impact 4 | . . . 4 Slashing 3 | . . . 3 Piercing . | . . . . Sneak Attacks . | . . . . Combat Hostiles . | . . . . Follow-up Attacks . | . . . . Damage Inflicted 1132 | 66 239 4 823 Guns 1119 | 63 233 . 823 Cannons . | . . . . Explosions . | . . . . Melee . | . . . . Ramming 13 | 3 6 4 . Kinetic 187 | 25 93 . 69 Thermal 932 | 38 140 . 754 Explosive . | . . . . Electromagnetic . | . . . . Impact . | . . . . Slashing . | . . . . Piercing . | . . . . Highest Corruption . | . . . . Average Corruption . | . . . . Corruption Purged . | . . . . Corruption Blocked . | . . . . Overload Shots . | . . . . Overflow Damage . | . . . . Projectiles . | . . . . Explosions . | . . . . Melee . | . . . . Knockbacks . | . . . . Impact . | . . . . Kinetic . | . . . . Secondary . | . . . . Self-Inflicted Damage . | . . . . Shots . | . . . . Rammed 5 | 1 3 1 . Targets Rammed 5 | 1 3 1 . Kicked . | . . . . Crushed . | . . . . Highest Temperature 200 | 60 200 . 32 Average Temperature 49 | 24 72 . 6 Received Heat Transfer 252 | . 48 . 204 Siege Activations . | . . . . Martial Activations . | . . . . Shielding Activations . | . . . . Robots Disrupted . | . . . . Combat Hostiles . | . . . . Robots Corrupted . | . . . . Combat Hostiles . | . . . . Parts Fried . | . . . . Impact Corruptions . | . . . . Robots Melted . | . . . . Combat Hostiles . | . . . . Parts Melted 6 | . 2 . 4 Heat Transferred 2986 | 111 481 . 2394 Parts Sabotaged . | . . . . Parts Stolen . | . . . . Parts Stripped . | . . . . Power Chain Reactions . | . . . . Alert | -11 -10 -10 -10 ------- Run | Yrd Mat Min Sub Maximum Alert Level . | . . . . Low Security (%) 100 | 100 100 100 . Level 1 . | . . . . Level 2 . | . . . . Level 3 . | . . . . Level 4 . | . . . . Level 5 . | . . . . High Security . | . . . . Max Security . | . . . . Peak Influence 90 | 5 90 7 . Initial 7 | . . 7 . Average 14 | . 32 . . Influence Increases 254 | 15 176 . 63 Destroy 0b10 Robot/C 160 | . 100 . 60 Destroy 0b10 Robot/NC 25 | 15 10 . . Destroy Leader 30 | . 30 . . Allied During Kill 3 | . . . 3 Successful Hack 6 | . 6 . . Lose Combat Pursuer 30 | . 30 . . Influence Decreases 254 | 15 155 21 63 Entered New Map 14 | . . 14 . Time Decay 240 | 15 155 7 63 Squads Dispatched 2 | . 2 . . Investigation 2 | . 2 . . Extermination . | . . . . Reinforcement . | . . . . Assault . | . . . . Garrison . | . . . . Intercept . | . . . . Searches Triggered . | . . . . Construction Impeded . | . . . . Haulers Reinforced . | . . . . Active Scanning Responses . | . . . . Cargo Convoy Interrupts . | . . . . Stealth | -11 -10 -10 -10 --------- Run | Yrd Mat Min Sub Distress Signals . | . . . . Communications Jammed . | . . . . Distress Signals . | . . . . Times Spotted 23 | . 13 . 10 Peak Tracking Total 6 | . 6 . 3 Tactical Retreats 1 | . 1 . . Traps | -11 -10 -10 -10 ------- Run | Yrd Mat Min Sub Traps Triggered 1 | . 1 . . Indirectly . | . . . . Trap Hack Attempts . | . . . . Triggered . | . . . . Disarmed . | . . . . Reprogrammed . | . . . . Reused . | . . . . Traps Extracted . | . . . . Installed . | . . . . Triggered . | . . . . Machines | -11 -10 -10 -10 ---------- Run | Yrd Mat Min Sub Machines Disabled . | . . . . Max in Single Turn . | . . . . Machines Repaired . | . . . . Machines Dismantled . | . . . . Machines Sabotaged . | . . . . Overloaded Fab Kills . | . . . . Hacking | -11 -10 -10 -10 --------- Run | Yrd Mat Min Sub Machines Accessed 4 | . 3 . 1 Terminals 2 | . 2 . . Fabricators . | . . . . Repair Stations 1 | . 1 . . Recycling Units . | . . . . Scanalyzers . | . . . . Garrison Access . | . . . . Total Hacks 12 | . 8 . 4 Successful 6 | . 2 . 4 Failed 6 | . 6 . . Catastrophic 3 | . 3 . . Database Lockouts . | . . . . Manual 5 | . 5 . . Terminals 5 | . 5 . . Fabricators . | . . . . Repair Stations 3 | . 3 . . Recycling Units . | . . . . Scanalyzers . | . . . . Garrison Access . | . . . . Terminal Hacks 5 | . 1 . 4 Record 4 | . . . 4 Robot Analysis 1 | . 1 . . Fabricator Hacks . | . . . . Repair Station Hacks . | . . . . Recycling Unit Hacks . | . . . . Scanalyzer . | . . . . Garrison Access Hacks . | . . . . Unauthorized Hacks 1 | . 1 . . Terminals 1 | . 1 . . Search 1 | . 1 . . Fabricators . | . . . . Repair Stations . | . . . . Recycling Units . | . . . . Scanalyzers . | . . . . Garrison Access . | . . . . Data Cores Recovered . | . . . . Used . | . . . . Hacking Detections 3 | . 3 . . Full Trace Events . | . . . . Feedback Events . | . . . . Feedback Blocked . | . . . . Robot Schematics Acquired . | . . . . Robots Built . | . . . . Authchips . | . . . . Time . | . . . . Total Robot Build Rating . | . . . . Part Schematics Acquired . | . . . . Parts Built . | . . . . Authchips . | . . . . Time . | . . . . Total Part Build Rating . | . . . . Part Studies Acquired . | . . . . Parts Repaired . | . . . . Time . | . . . . Parts Recycled . | . . . . Recycled Matter . | . . . . Retrieved Matter . | . . . . Retrieved Components . | . . . . Parts Scanalyzed . | . . . . Part Schematics Acquired . | . . . . Parts Damaged . | . . . . Bothacking | -11 -10 -10 -10 ------------ Run | Yrd Mat Min Sub Used RIF Installer . | . . . . Robots Hacked . | . . . . Non-combat . | . . . . Combat . | . . . . Robot Hacks Applied . | . . . . Relay Couplers Released . | . . . . Fabnet Peak Effective % . | . . . . Robots Rewired . | . . . . Allies Hacked . | . . . . Hacks Repelled . | . . . . Allies | -11 -10 -10 -10 -------- Run | Yrd Mat Min Sub Total Allies 2 | . . 2 . Largest Group 2 | . . 2 2 Highest-Rated Group 42 | . . 38 42 Highest-Rated Ally 31 | . . 31 31 Total Orders . | . . . . Ally Attacks 19 | . . . 19 Total Damage 368 | . . . 368 Kills 5 | . . . 5 Allies Corrupted . | . . . . Allies Melted . | . . . . Intel | -11 -10 -10 -10 ------- Run | Yrd Mat Min Sub Active Infowar (turns) 583 | . . 1 582 Sensors 1 | . . 1 . Seismic 582 | . . . 582 Robot Analysis Total 1 | . 1 . . Derelict Logs Recovered 1 | . . 1 . Drone Launches . | . . . . Drone Recoveries . | . . . . Exploration | -11 -10 -10 -10 ------------- Run | Yrd Mat Min Sub Turns Passed 2165 | 168 440 418 1139 Spaces Moved 1148 | 88 232 251 577 Core 3 | 3 . . . Treads 1145 | 85 232 251 577 Legs . | . . . . Wheels . | . . . . Hover . | . . . . Flight . | . . . . Fastest Speed 50 | 50 160 160 160 Average Speed 159 | 156 160 160 160 Slowest Speed 160 | 160 160 160 160 Overloaded Moves . | . . . . Propulsion Burnouts . | . . . . Robots Hopped . | . . . . Potential Cave-ins . | . . . . Cave-ins Triggered . | . . . . Exploration Rate (%) 36 | 6 45 58 35 Regions Visited 3 Branch Regions 2 Pre-discovered Areas 1 | . . . 1 Known Exits Taken . | . . . . Unknown Exits Taken 3 | 1 1 1 . Scrap Searched 3 | . . . 3 Spaces Dug 1 | . . . 1 Terrain Destroyed 1 | . . . 1 Melee 1 | . . . 1 Projectile . | . . . . AOE . | . . . . Terrain Rammed . | . . . . Walls Destroyed . | . . . . Machines Disabled . | . . . . Actions | -11 -10 -10 -10 --------- Run | Yrd Mat Min Sub Total 1351 | 108 269 269 705 Wait 64 | 3 1 3 57 Move 1145 | 87 231 250 577 Hop . | . . . . Pick Up 26 | 7 9 6 4 Fast Attach 10 | 6 1 1 2 Attach 6 | . . 1 5 Detach 3 | . 1 1 1 Swap 12 | . 2 1 9 Drop 13 | . 4 5 4 Fire 60 | 4 17 . 39 Melee 7 | . . . 7 Ram . | . . . . Kick . | . . . . Crush 5 | 1 3 1 . Escape Stasis . | . . . . Rewire . | . . . . Trap . | . . . . Miscellaneous . | . . . . Route ------- -11/Scrapyard -10/Materials (discovered 2 exits: [*Mat] / [*Min]) -10/Mines (discovered 4 exits: [*Mat x2] / [*Exi] / *Sub) -10/Subcaves (discovered 2 exits: [*Mat] / [*Scr]) History --------- Turn | Location | Event 2 | -11/Scrapyard | Discovered new exit (range 16) 169 | -11/Scrapyard | Entered Materials 302 | -10/Materials | Build established: Mutant 412 | -10/Materials | Discovered new exit (range 15) 573 | -10/Materials | Discovered new exit (range 11) 609 | -10/Materials | Entered Mines 657 | -10/Mines | Learned 2 Materials zone layouts 681 | -10/Mines | Discovered new exit (range 10) 758 | -10/Mines | Deemed a non-threat by the Exiles lab entrance 758 | -10/Mines | Discovered new exit (range 5) 789 | -10/Mines | Discovered new exit (range 12) 907 | -10/Mines | Found a damaged Exp. Sensor Array with a note attached 910 | -10/Mines | Found Prototype Device 911 | -10/Mines | Identified Exp. Sensor Array 945 | -10/Mines | Joined a pair of Derelicts in attacking an 0b10 outpost 1009 | -10/Mines | Discovered new exit (range 9) 1027 | -10/Mines | Entered Subcaves 1027 | -10/Subcaves | Accompanied by 2 allies 1028 | -10/Subcaves | Approached by a straggling Scientist 1032 | -10/Subcaves | Led the pair of lost Derelicts to an unsafe place 1069 | -10/Subcaves | Scientist uncovered a shortcut to Scraptown 1710 | -10/Subcaves | Discovered new exit (range 5) 1712 | -10/Subcaves | Shifting Twisted Machinery released Sub. Optics 1743 | -10/Subcaves | Visited Clippyterm 1748 | -10/Subcaves | Learned location of Section 7 (-2) 1780 | -10/Subcaves | Ambushed by Subdweller buried in earth 1826 | -10/Subcaves | Lost 4 parts (2u2w) 1826 | -10/Subcaves | Ambushed by Subdweller buried in earth 1834 | -10/Subcaves | Core integrity fell below 50% 2159 | -10/Subcaves | Core integrity fell below 20% 2166 | -10/Subcaves | Destroyed by IT-CEW(R) with Subdweller Laser Last Messages --------------- 01821_ Sub. Optics melted. 01821_ S4-SWQ(R) destroyed. 01826_ Lgt. Armor Plating destroyed. 01827_ TN-6IM(R): "ARGHSUB!" 01827_ EO-J6N(R) destroyed. 01827_ Switching to secondary target: TN-6IM(R). 01833_ TN-6IM(R) suffers critical hit (Burn). 01838_ TN-6IM(R) affixes Scrap Shield Fragment to Scrap Shield. 01842_ Disposable Heat Sink melted. 01842_ TN-6IM(R) destroyed. 01851_ Acquired Sub. Laser. 01856_ Acquired 28 matter. 01868_ Acquired 10 matter. 01871_ Acquired Scrap Shield. 01875_ Acquired Mak. Targeting Computer. 01920_ Subatomizers dissect the Sub. Monowheel. 01929_ Acquired 10 matter. 01934_ Subatomizers dissect the Sub. Monowheel. 02152_ IT-CEW(R) suffers critical hit (Burn). Map ----- +----------------------------------------------------+ | ?????????????????????????????????????????????????? | | ?????????????????????????????????????????????????? | | ?????????????????????????????????????????????????? | | ?????????????????????????????????????????????????? | | ?????????????????????????????????????????????????? | | ?????????????????????????????????????????????????? | | ?????????????????????????????????????????????????? | | ?????????????????????????????????????????????????? | | ?????????????????????????????????????????????????? | | ?????????????????????????????????????????????????? | | ?????????????????????????????????????????????????? | | ?????????????????????????????????????????????????? | | ?????????????????????????????????????????????????? | | ?????????????????????????????????????????????????? | | ??????????????????????????????????###????????????? | | ??????###??????????????????####??## #????????????? | | ?????## ##???????????????## ##?# #????????????? | | ###?## ##????###??###### #?# ###??????????? | | ### ##???# #### #?# #??????????? | | " #???# #??# #???????????? | | #### #???# #??## #???????????? | | ##?## ##???#### ###??# ##???????????? | | ##?## ##???????#### #????# #????????????? | | #### #???????????# ###?## #????????????? | | ## #??????????## ### #????????????? | | #?????????## R @ #????????????? | | #??####??## ####### ##???????????? | | ##### #### ##????##### ##??????????? | | ## ## ##???????# ##?????????? | | #####?# #???????## #?????????? | | "#???## #????????# #?????????? | | "####### #????????# ##?????????? | | "# # ### ## ##????????## #??????????? | | ## #??????????# ###????????? | | ##??????????# #????????? | | # # #??????????# #????????? | | "" "#### #?????????# #????????? | | "##"""#??# ???????### #????????? | | ########?? ?????????#####????????? | | ??# #??"" ?????????????????????? | | #?# #?##" ## ""????????????????????? | | ### #???###### "?????????????????????? | | #??##"#???#" ??????????????????????? | | #### ##???"""" ???????????????????????? | | ## #???"""## ????????????????????????? | | #????????? ?????????????????????????? | | ##??????????#???????????????????????????? | | ""!####????????????????????????????????????? | | #####"" ###??????????????????????????????????? | | ###???#"" ##?????????????????????????????????? | +----------------------------------------------------+ Best States ------------- Heat Dissipation 25 Energy Generation 10 Energy Capacity 250 Matter Stores 300 Matter Capacity 300 Sight Range 16 Terrain Scan Density 10 Armor Coverage 150 Evasion (%) 40 Recoil Reduction 2 Item Schematics ----------------- None Robot Schematics ------------------ None Fabricated ------------ Nothing Repaired ---------- Nothing Studied --------- None Alien Tech Used ----------------- None Achievements -------------- None Challenges ------------ None Game ------ Seed BraceMasterScrap Manual? 0 Play Time 00:12:12 Cumulative 2196.4 hours Start 2026.03.14 @ 16:48:48 End 2026.03.14 @ 16:58:06 Sessions 1 Manual Loads 0 Difficulty Rogue Special Mode None Game No. 1388 Rogue 1384 Adventurer 4 Explorer 0 Win Type - Total 310 Types 231/14/26/11/3/1/5/10/5/4 Lore% 99 Gallery% 96 Achievement% 92 Wizard Run 0 Options --------- Layout 2 ASCII 0 Keyboard 1 Movement Vi Keybinds 0 Fullscreen 0 Font 24/Terminus Map View 59x48 Zoom Use 0% Tactical HUD 1 Map Filters NONE Filters NONE Steam 1 RUN: 79ac9e7b-893e-4ab7-bfee-4ca38131925c